[Event "*** SCC Grand Prix: Titled Tuesday Blitz"]
[Site "Chess.com"]
[Date "2020.07.21"]
[Round "2"]
[White "SARGISMV"]
[Black "Semen_Khanin"]
[Result "1-0"]
[WhiteElo "2515"]
[BlackElo "2723"]
[TimeControl "180+1"]
[EndTime "10:18:56 PDT"]
[Termination "SARGISMV won by resignation"]

1. d4 {[%clk 0:03:00.9]} 1... Nf6 {[%clk 0:02:59.7]} 2. c4 {[%clk 0:03:01.4]}
2... e6 {[%clk 0:03:00.2]} 3. Nc3 {[%clk 0:03:02]} 3... Bb4 {[%clk 0:02:59.4]}
4. e3 {[%clk 0:03:02.4]} 4... d5 {[%clk 0:02:57.1]} 5. Nf3 {[%clk 0:03:02.1]}
5... O-O {[%clk 0:02:56.2]} 6. Bd2 {[%clk 0:03:02.5]} 6... c5 {[%clk 0:02:54.7]}
7. a3 {[%clk 0:03:01.4]} 7... Bxc3 {[%clk 0:02:54.1]} 8. Bxc3 {[%clk 0:03:02.3]}
8... Ne4 {[%clk 0:02:54.4]} 9. Rc1 {[%clk 0:02:46.4]} 9... Nc6 {[%clk
0:02:50.3]} 10. cxd5 {[%clk 0:02:43.1]} 10... Qxd5 {[%clk 0:02:45.2]} 11. dxc5
{[%clk 0:02:30.7]} 11... Qxd1+ {[%clk 0:02:17.5]} 12. Rxd1 {[%clk 0:02:31.6]}
12... Nxc3 {[%clk 0:02:11.9]} 13. bxc3 {[%clk 0:02:32.5]} 13... Rd8 {[%clk
0:02:12.1]} 14. Rxd8+ {[%clk 0:02:28.7]} 14... Nxd8 {[%clk 0:02:12.1]} 15. Bb5
{[%clk 0:02:28.6]} 15... b6 {[%clk 0:01:50.3]} 16. cxb6 {[%clk 0:02:16.8]} 16...
axb6 {[%clk 0:01:50.3]} 17. a4 {[%clk 0:02:17.4]} 17... Nb7 {[%clk 0:01:47]} 18.
Ke2 {[%clk 0:02:10.6]} 18... Nc5 {[%clk 0:01:46.9]} 19. Rb1 {[%clk 0:01:51.2]}
19... Bb7 {[%clk 0:01:41.7]} 20. Rb4 {[%clk 0:01:40.9]} 20... f6 {[%clk
0:01:32.2]} 21. Ne1 {[%clk 0:01:06.1]} 21... Kf8 {[%clk 0:01:19.4]} 22. f3
{[%clk 0:01:04]} 22... Ke7 {[%clk 0:01:16.3]} 23. Nd3 {[%clk 0:01:03]} 23...
Nxd3 {[%clk 0:00:22.9]} 24. Kxd3 {[%clk 0:00:57.7]} 24... e5 {[%clk 0:00:22.4]}
25. e4 {[%clk 0:00:53.7]} 25... Kd6 {[%clk 0:00:21.6]} 26. Bc4 {[%clk
0:00:39.6]} 26... Kc7 {[%clk 0:00:20.4]} 27. Bd5 {[%clk 0:00:35.4]} 27... Ba6+
{[%clk 0:00:15.4]} 28. c4 {[%clk 0:00:33.1]} 28... Rd8 {[%clk 0:00:14.2]} 29.
Rb2 {[%clk 0:00:29.9]} 29... Bc8 {[%clk 0:00:13.1]} 30. Kc3 {[%clk 0:00:29.5]}
30... Bd7 {[%clk 0:00:13.7]} 31. Kb4 {[%clk 0:00:29.8]} 31... Rb8 {[%clk
0:00:12.5]} 32. Ra2 {[%clk 0:00:27.8]} 32... Kd6 {[%clk 0:00:11.7]} 33. Rd2
{[%clk 0:00:24.9]} 33... Kc7 {[%clk 0:00:11.9]} 34. h4 {[%clk 0:00:24.4]} 34...
h6 {[%clk 0:00:11.9]} 35. Rb2 {[%clk 0:00:19.4]} 35... Kd6 {[%clk 0:00:12]} 36.
Ra2 {[%clk 0:00:18.6]} 36... Kc7 {[%clk 0:00:12]} 37. c5 {[%clk 0:00:16.7]}
37... bxc5+ {[%clk 0:00:11.7]} 38. Kxc5 {[%clk 0:00:17.6]} 38... Rb1 {[%clk
0:00:09.1]} 39. a5 {[%clk 0:00:15.9]} 39... Rc1+ {[%clk 0:00:09.5]} 40. Kb4
{[%clk 0:00:14.6]} 40... Rb1+ {[%clk 0:00:09.4]} 41. Kc3 {[%clk 0:00:14.6]}
41... Kb8 {[%clk 0:00:07.5]} 42. Rb2+ {[%clk 0:00:09.7]} 42... Rxb2 {[%clk
0:00:07.4]} 43. Kxb2 {[%clk 0:00:10.6]} 43... Ka7 {[%clk 0:00:06.4]} 44. Ka3
{[%clk 0:00:09.9]} 44... Bb5 {[%clk 0:00:06.7]} 45. g3 {[%clk 0:00:09.4]} 45...
Be2 {[%clk 0:00:05.8]} 46. f4 {[%clk 0:00:09.3]} 46... Bf3 {[%clk 0:00:05.3]}
47. f5 {[%clk 0:00:08]} 47... Bh5 {[%clk 0:00:03.8]} 48. Kb4 {[%clk 0:00:08.2]}
48... g6 {[%clk 0:00:04.3]} 49. fxg6 {[%clk 0:00:04.3]} 49... Bxg6 {[%clk
0:00:04.1]} 50. Kc5 {[%clk 0:00:03.9]} 50... Ka6 {[%clk 0:00:04.2]} 51. Kc6
{[%clk 0:00:04.3]} 51... Kxa5 {[%clk 0:00:04.5]} 52. Kd6 {[%clk 0:00:04.8]}
52... Kb4 {[%clk 0:00:04.3]} 53. Ke6 {[%clk 0:00:05.3]} 53... Kc5 {[%clk
0:00:03.2]} 54. Kxf6 {[%clk 0:00:05.7]} 54... Be8 {[%clk 0:00:03.1]} 55. Kxe5
{[%clk 0:00:06.1]} 55... Bh5 {[%clk 0:00:02.5]} 56. Kf6 {[%clk 0:00:06.5]} 56...
Kd4 {[%clk 0:00:03]} 57. Kg7 {[%clk 0:00:06.8]} 57... Bf3 {[%clk 0:00:03.2]} 58.
Kxh6 {[%clk 0:00:07.3]} 58... Ke5 {[%clk 0:00:04.1]} 59. Kg5 {[%clk 0:00:06.4]}
59... Be2 {[%clk 0:00:04.5]} 60. g4 {[%clk 0:00:06.6]} 60... Bb5 {[%clk
0:00:05.4]} 61. h5 {[%clk 0:00:06.9]} 61... Kd6 {[%clk 0:00:06.3]} 62. h6 {[%clk
0:00:07.3]} 1-0

[Event "*** SCC Grand Prix: Titled Tuesday Blitz"]
[Site "Chess.com"]
[Date "2020.07.21"]
[Round "2"]
[White "DariaVoit"]
[Black "platy3"]
[Result "0-1"]
[WhiteElo "2511"]
[BlackElo "2760"]
[TimeControl "180+1"]
[EndTime "10:18:57 PDT"]
[Termination "platy3 won by resignation"]

1. d4 {[%clk 0:03:00.9]} 1... Nf6 {[%clk 0:02:59.9]} 2. Nf3 {[%clk 0:03:01.4]}
2... d5 {[%clk 0:02:59.6]} 3. c4 {[%clk 0:03:01.4]} 3... e6 {[%clk 0:03:00]} 4.
g3 {[%clk 0:03:01.7]} 4... Be7 {[%clk 0:02:58.7]} 5. Bg2 {[%clk 0:03:01.6]} 5...
O-O {[%clk 0:02:59.3]} 6. Qc2 {[%clk 0:03:02]} 6... c5 {[%clk 0:02:50.6]} 7. O-O
{[%clk 0:03:01.5]} 7... cxd4 {[%clk 0:02:49.5]} 8. Nxd4 {[%clk 0:03:01.4]} 8...
Nc6 {[%clk 0:02:50.2]} 9. Rd1 {[%clk 0:02:59.7]} 9... Qb6 {[%clk 0:02:44.8]} 10.
Be3 {[%clk 0:02:36]} 10... Bc5 {[%clk 0:02:30.3]} 11. Nxc6 {[%clk 0:02:35.7]}
11... bxc6 {[%clk 0:01:54.1]} 12. Bxc5 {[%clk 0:02:35.4]} 12... Qxc5 {[%clk
0:01:55]} 13. Nd2 {[%clk 0:02:32.1]} 13... a5 {[%clk 0:01:50.5]} 14. Rac1 {[%clk
0:02:31]} 14... Ba6 {[%clk 0:01:48.7]} 15. cxd5 {[%clk 0:02:24.2]} 15... Qxc2
{[%clk 0:01:45.9]} 16. Rxc2 {[%clk 0:02:25.1]} 16... cxd5 {[%clk 0:01:43]} 17.
Nb3 {[%clk 0:02:03]} 17... Bc4 {[%clk 0:01:37.5]} 18. Nc5 {[%clk 0:01:51.7]}
18... Rac8 {[%clk 0:01:28.4]} 19. Nd3 {[%clk 0:01:30.1]} 19... Bxa2 {[%clk
0:01:13]} 20. Rxc8 {[%clk 0:01:29.5]} 20... Rxc8 {[%clk 0:01:13.9]} 21. Ra1
{[%clk 0:01:29.7]} 21... Bc4 {[%clk 0:01:08.7]} 22. Rxa5 {[%clk 0:01:25]} 22...
g5 {[%clk 0:01:02.9]} 23. Bf1 {[%clk 0:00:31.2]} 23... Bxd3 {[%clk 0:01:02.9]}
24. exd3 {[%clk 0:00:31.7]} 24... Rc1 {[%clk 0:01:03.7]} 25. Kg2 {[%clk
0:00:31.1]} 25... Rb1 {[%clk 0:01:03.5]} 26. Rb5 {[%clk 0:00:31]} 26... Kg7
{[%clk 0:00:59.7]} 27. Be2 {[%clk 0:00:29.9]} 27... Nd7 {[%clk 0:00:43.7]} 28.
h3 {[%clk 0:00:24.9]} 28... Ne5 {[%clk 0:00:43.4]} 29. Rb7 {[%clk 0:00:22.5]}
29... Kf6 {[%clk 0:00:37]} 30. d4 {[%clk 0:00:17.8]} 30... Nc6 {[%clk
0:00:25.6]} 31. Bh5 {[%clk 0:00:16.2]} 31... Ne7 {[%clk 0:00:25.6]} 32. Kf3
{[%clk 0:00:13.5]} 32... Rh1 {[%clk 0:00:20.6]} 33. Kg2 {[%clk 0:00:11.6]} 33...
Rc1 {[%clk 0:00:19.1]} 34. Kf3 {[%clk 0:00:11.3]} 34... Rc4 {[%clk 0:00:19.2]}
35. Ke3 {[%clk 0:00:11.3]} 35... Nf5+ {[%clk 0:00:19.1]} 36. Kd3 {[%clk
0:00:11.2]} 36... Rxd4+ {[%clk 0:00:17.4]} 37. Kc3 {[%clk 0:00:11.6]} 37... Rc4+
{[%clk 0:00:17.5]} 38. Kb3 {[%clk 0:00:12]} 38... Ne7 {[%clk 0:00:11.8]} 39. Be2
{[%clk 0:00:08.1]} 39... Rd4 {[%clk 0:00:10.2]} 40. Kc3 {[%clk 0:00:07.6]} 40...
Ra4 {[%clk 0:00:10.8]} 41. b4 {[%clk 0:00:06.9]} 41... Ra2 {[%clk 0:00:09.8]}
42. Bd3 {[%clk 0:00:06.9]} 42... Rxf2 {[%clk 0:00:08]} 43. Bxh7 {[%clk
0:00:06.9]} 43... Rf3+ {[%clk 0:00:07.1]} 44. Kd4 {[%clk 0:00:07.1]} 44... Rxg3
{[%clk 0:00:04.5]} 45. b5 {[%clk 0:00:07]} 45... Rxh3 {[%clk 0:00:04.9]} 46. Bc2
{[%clk 0:00:05.6]} 46... e5+ {[%clk 0:00:04.8]} 47. Kc5 {[%clk 0:00:04.1]} 47...
Rc3+ {[%clk 0:00:05.4]} 48. Kd6 {[%clk 0:00:04.5]} 48... Rxc2 {[%clk 0:00:05.7]}
49. Rxe7 {[%clk 0:00:04]} 49... Rb2 {[%clk 0:00:03.2]} 50. Rb7 {[%clk
0:00:01.6]} 50... d4 {[%clk 0:00:03.8]} 51. b6 {[%clk 0:00:01.8]} 51... d3
{[%clk 0:00:04.4]} 52. Kc6 {[%clk 0:00:02]} 52... e4 {[%clk 0:00:05]} 53. Rd7
{[%clk 0:00:02.7]} 53... Ke6 {[%clk 0:00:04.8]} 54. Rd6+ {[%clk 0:00:02.7]}
54... Ke5 {[%clk 0:00:04.9]} 55. Rd7 {[%clk 0:00:02.8]} 55... Rxb6+ {[%clk
0:00:04.5]} 56. Kxb6 {[%clk 0:00:02.9]} 56... f5 {[%clk 0:00:05.4]} 57. Kc5
{[%clk 0:00:03.4]} 57... g4 {[%clk 0:00:04.2]} 58. Kc4 {[%clk 0:00:04]} 58... g3
{[%clk 0:00:04.7]} 59. Kc3 {[%clk 0:00:04.1]} 59... Kf4 {[%clk 0:00:05.1]} 60.
Kd2 {[%clk 0:00:04.5]} 60... Kf3 {[%clk 0:00:05.7]} 61. Rf7 {[%clk 0:00:04.8]}
61... f4 {[%clk 0:00:06]} 62. Rg7 {[%clk 0:00:05.4]} 62... g2 {[%clk 0:00:06.4]}
63. Rg6 {[%clk 0:00:06]} 63... Kf2 {[%clk 0:00:06.8]} 64. Rg4 {[%clk 0:00:06.5]}
64... e3+ {[%clk 0:00:03.3]} 65. Kxd3 {[%clk 0:00:06.5]} 65... f3 {[%clk
0:00:04.2]} 66. Rg5 {[%clk 0:00:06.2]} 66... g1=Q {[%clk 0:00:03.5]} 67. Rxg1
{[%clk 0:00:06.8]} 67... Kxg1 {[%clk 0:00:04.3]} 68. Kxe3 {[%clk 0:00:07.7]}
68... f2 {[%clk 0:00:05]} 0-1

[Event "*** SCC Grand Prix: Titled Tuesday Blitz"]
[Site "Chess.com"]
[Date "2020.07.21"]
[Round "2"]
[White "Killertoy"]
[Black "Denmark2015"]
[Result "0-1"]
[WhiteElo "2233"]
[BlackElo "2619"]
[TimeControl "180+1"]
[EndTime "10:19:01 PDT"]
[Termination "Denmark2015 won by checkmate"]

1. e4 {[%clk 0:03:00.9]} 1... e6 {[%clk 0:02:58.8]} 2. d4 {[%clk 0:03:00.7]}
2... d5 {[%clk 0:02:59.1]} 3. Nc3 {[%clk 0:03:01]} 3... Bb4 {[%clk 0:02:59.1]}
4. exd5 {[%clk 0:03:00.8]} 4... exd5 {[%clk 0:02:57.8]} 5. Bd3 {[%clk
0:03:01.1]} 5... Nc6 {[%clk 0:02:58.1]} 6. a3 {[%clk 0:02:57]} 6... Be7 {[%clk
0:02:56.3]} 7. Bf4 {[%clk 0:02:48.1]} 7... a6 {[%clk 0:02:51.1]} 8. Nge2 {[%clk
0:02:40.9]} 8... Bf6 {[%clk 0:02:49.2]} 9. O-O {[%clk 0:02:37.5]} 9... Nge7
{[%clk 0:02:48.9]} 10. Qd2 {[%clk 0:02:21.3]} 10... Nxd4 {[%clk 0:02:24.6]} 11.
Nxd4 {[%clk 0:02:16.9]} 11... Bxd4 {[%clk 0:02:24.7]} 12. Rfe1 {[%clk
0:02:12.6]} 12... Bf6 {[%clk 0:02:20.8]} 13. Bg5 {[%clk 0:02:00.5]} 13... Bxc3
{[%clk 0:01:42.2]} 14. Qxc3 {[%clk 0:01:59.9]} 14... f6 {[%clk 0:01:42.5]} 15.
Re2 {[%clk 0:01:55.5]} 15... O-O {[%clk 0:01:39.2]} 16. Rae1 {[%clk 0:01:44.2]}
16... Nc6 {[%clk 0:01:18.5]} 17. Bf4 {[%clk 0:01:41.7]} 17... Bg4 {[%clk
0:01:18.2]} 18. f3 {[%clk 0:01:40.8]} 18... Bh5 {[%clk 0:01:18.4]} 19. Bf5
{[%clk 0:01:39.7]} 19... Bf7 {[%clk 0:01:17.6]} 20. Qc5 {[%clk 0:01:35.6]} 20...
d4 {[%clk 0:01:04.2]} 21. Be4 {[%clk 0:01:31.2]} 21... Qd7 {[%clk 0:00:42.8]}
22. Bxc6 {[%clk 0:01:28.4]} 22... Qxc6 {[%clk 0:00:41.5]} 23. Qxc6 {[%clk
0:01:27.9]} 23... bxc6 {[%clk 0:00:41.9]} 24. Bxc7 {[%clk 0:01:21.3]} 24... Bg6
{[%clk 0:00:40.2]} 25. Rd1 {[%clk 0:01:09.9]} 25... Rac8 {[%clk 0:00:35.3]} 26.
Ba5 {[%clk 0:01:08.6]} 26... c5 {[%clk 0:00:33.7]} 27. b4 {[%clk 0:01:07.6]}
27... cxb4 {[%clk 0:00:31.8]} 28. Bxb4 {[%clk 0:01:07.1]} 28... Rfd8 {[%clk
0:00:29.6]} 29. Red2 {[%clk 0:01:04.8]} 29... Rc4 {[%clk 0:00:29.6]} 30. Kf2
{[%clk 0:00:52.3]} 30... Bxc2 {[%clk 0:00:28.9]} 31. Rc1 {[%clk 0:00:48.5]}
31... d3 {[%clk 0:00:26.7]} 32. h3 {[%clk 0:00:47.2]} 32... Rdc8 {[%clk
0:00:26.5]} 33. g4 {[%clk 0:00:43.4]} 33... Kf7 {[%clk 0:00:24.9]} 34. Re1
{[%clk 0:00:42.8]} 34... R4c7 {[%clk 0:00:24.2]} 35. Rc1 {[%clk 0:00:41.2]}
35... g6 {[%clk 0:00:23.3]} 36. f4 {[%clk 0:00:40]} 36... Rc6 {[%clk 0:00:22.3]}
37. Re1 {[%clk 0:00:39]} 37... R8c7 {[%clk 0:00:21.7]} 38. Ba5 {[%clk
0:00:36.7]} 38... Rb7 {[%clk 0:00:20.7]} 39. Bb4 {[%clk 0:00:36.6]} 39... Rcc7
{[%clk 0:00:19.3]} 40. Rc1 {[%clk 0:00:35.7]} 40... Rd7 {[%clk 0:00:17.8]} 41.
Ba5 {[%clk 0:00:34]} 41... f5 {[%clk 0:00:18.1]} 42. g5 {[%clk 0:00:32.8]} 42...
Ke6 {[%clk 0:00:17.6]} 43. Re1+ {[%clk 0:00:31.6]} 43... Kd5 {[%clk 0:00:18]}
44. Re5+ {[%clk 0:00:29.9]} 44... Kc4 {[%clk 0:00:18.3]} 45. Bb4 {[%clk
0:00:28.4]} 45... Rd5 {[%clk 0:00:17.8]} 46. Re6 {[%clk 0:00:27.4]} 46... a5
{[%clk 0:00:18]} 47. Bf8 {[%clk 0:00:22.9]} 47... Kc3 {[%clk 0:00:18.5]} 48.
Ree2 {[%clk 0:00:17.3]} 48... Rd8 {[%clk 0:00:12.2]} 49. Bc5 {[%clk 0:00:14.3]}
49... Rb5 {[%clk 0:00:10.6]} 50. Be3 {[%clk 0:00:12.7]} 50... Rdd5 {[%clk
0:00:10.5]} 51. Rxc2+ {[%clk 0:00:11.1]} 51... dxc2 {[%clk 0:00:10.4]} 52. Re1
{[%clk 0:00:11.5]} 52... Rd3 {[%clk 0:00:10.5]} 53. Bc1 {[%clk 0:00:11]} 53...
Rb1 {[%clk 0:00:10.8]} 54. Kg2 {[%clk 0:00:11.9]} 54... Rxc1 {[%clk 0:00:10.6]}
55. Rxc1 {[%clk 0:00:11.3]} 55... Rd1 {[%clk 0:00:11.5]} 56. Rxc2+ {[%clk
0:00:10.6]} 56... Kxc2 {[%clk 0:00:12.4]} 57. h4 {[%clk 0:00:10.5]} 57... Rd3
{[%clk 0:00:13.3]} 58. h5 {[%clk 0:00:09.7]} 58... Rxa3 {[%clk 0:00:13.4]} 59.
Kh2 {[%clk 0:00:09.2]} 59... Kd2 {[%clk 0:00:13.5]} 60. Kg2 {[%clk 0:00:08.8]}
60... Ke2 {[%clk 0:00:14]} 61. hxg6 {[%clk 0:00:09.7]} 61... hxg6 {[%clk
0:00:14.1]} 62. Kh2 {[%clk 0:00:09]} 62... Kf3 {[%clk 0:00:14.4]} 63. Kh3 {[%clk
0:00:08.2]} 63... Ra2 {[%clk 0:00:14]} 64. Kh4 {[%clk 0:00:07.3]} 64... Rh2#
{[%clk 0:00:14.7]} 0-1

[Event "*** SCC Grand Prix: Titled Tuesday Blitz"]
[Site "Chess.com"]
[Date "2020.07.21"]
[Round "2"]
[White "crescentmoon2411"]
[Black "RubensCezila"]
[Result "0-1"]
[WhiteElo "2817"]
[BlackElo "2561"]
[TimeControl "180+1"]
[EndTime "10:19:03 PDT"]
[Termination "RubensCezila won by resignation"]

1. d4 {[%clk 0:02:57]} 1... Nf6 {[%clk 0:02:59.7]} 2. Nf3 {[%clk 0:02:57.4]}
2... g6 {[%clk 0:02:59.7]} 3. Bf4 {[%clk 0:02:57.2]} 3... Bg7 {[%clk 0:03:00.1]}
4. e3 {[%clk 0:02:57.5]} 4... O-O {[%clk 0:03:00.7]} 5. h3 {[%clk 0:02:57.8]}
5... d6 {[%clk 0:03:01.2]} 6. Be2 {[%clk 0:02:56.1]} 6... Nbd7 {[%clk
0:03:01.5]} 7. O-O {[%clk 0:02:55.3]} 7... Re8 {[%clk 0:03:01.9]} 8. Bh2 {[%clk
0:02:47.8]} 8... b6 {[%clk 0:02:55.8]} 9. c4 {[%clk 0:02:46.9]} 9... Bb7 {[%clk
0:02:54.5]} 10. Nc3 {[%clk 0:02:47.2]} 10... Ne4 {[%clk 0:02:48.8]} 11. Nxe4
{[%clk 0:02:32.9]} 11... Bxe4 {[%clk 0:02:48]} 12. Ng5 {[%clk 0:02:24.6]} 12...
Bb7 {[%clk 0:02:44.1]} 13. Bf3 {[%clk 0:02:17.9]} 13... c6 {[%clk 0:02:44]} 14.
Rc1 {[%clk 0:02:09]} 14... h6 {[%clk 0:02:33.3]} 15. Ne4 {[%clk 0:02:08.7]}
15... f5 {[%clk 0:02:31.9]} 16. Nc3 {[%clk 0:02:07.4]} 16... e5 {[%clk
0:02:31.4]} 17. b4 {[%clk 0:02:01.7]} 17... Nf6 {[%clk 0:02:28.8]} 18. dxe5
{[%clk 0:01:54.2]} 18... dxe5 {[%clk 0:02:28.3]} 19. Qb3 {[%clk 0:01:52.5]}
19... e4 {[%clk 0:02:21.5]} 20. Be2 {[%clk 0:01:50.1]} 20... Kh7 {[%clk
0:02:16.1]} 21. Rfd1 {[%clk 0:01:46.8]} 21... Qe7 {[%clk 0:02:12.9]} 22. Bd6
{[%clk 0:01:46.5]} 22... Qf7 {[%clk 0:02:12.3]} 23. c5 {[%clk 0:01:39.3]} 23...
Qxb3 {[%clk 0:02:09.8]} 24. axb3 {[%clk 0:01:40.2]} 24... b5 {[%clk 0:02:10.2]}
25. Bc7 {[%clk 0:01:34.2]} 25... Rac8 {[%clk 0:02:06.4]} 26. Ba5 {[%clk
0:01:33.8]} 26... Re7 {[%clk 0:01:58.2]} 27. Bf1 {[%clk 0:01:27.2]} 27... Kg8
{[%clk 0:01:49.2]} 28. Rd2 {[%clk 0:01:13.3]} 28... Rce8 {[%clk 0:01:19.4]} 29.
Rcd1 {[%clk 0:01:08.1]} 29... a6 {[%clk 0:01:15.2]} 30. Rd6 {[%clk 0:01:04]}
30... Kf7 {[%clk 0:01:09.6]} 31. g3 {[%clk 0:00:53.8]} 31... Rc8 {[%clk
0:01:05.6]} 32. Bd8 {[%clk 0:00:45.9]} 32... Re6 {[%clk 0:00:56.2]} 33. Rxe6
{[%clk 0:00:44.4]} 33... Kxe6 {[%clk 0:00:50.3]} 34. Rd6+ {[%clk 0:00:43.6]}
34... Ke5 {[%clk 0:00:46.3]} 35. Bxf6+ {[%clk 0:00:37.4]} 35... Bxf6 {[%clk
0:00:45.9]} 36. Rd7 {[%clk 0:00:32.5]} 36... Ke6 {[%clk 0:00:40.3]} 37. Rxb7
{[%clk 0:00:29.3]} 37... Bxc3 {[%clk 0:00:40.3]} 38. Rb6 {[%clk 0:00:28.5]}
38... Bxb4 {[%clk 0:00:39.8]} 39. Rxa6 {[%clk 0:00:28.8]} 39... Kd5 {[%clk
0:00:39]} 40. Ra7 {[%clk 0:00:28.1]} 40... Kxc5 {[%clk 0:00:33]} 41. Rg7 {[%clk
0:00:26.8]} 41... Bc3 {[%clk 0:00:27.3]} 42. Rxg6 {[%clk 0:00:27.2]} 42... Kb4
{[%clk 0:00:27.5]} 43. Rxh6 {[%clk 0:00:24.7]} 43... Kxb3 {[%clk 0:00:27]} 44.
Rh5 {[%clk 0:00:22.8]} 44... b4 {[%clk 0:00:22.2]} 45. Rxf5 {[%clk 0:00:22.8]}
45... c5 {[%clk 0:00:22.5]} 46. Bg2 {[%clk 0:00:21.4]} 46... Re8 {[%clk
0:00:19.8]} 47. Rxc5 {[%clk 0:00:21.1]} 47... Kc2 {[%clk 0:00:17.6]} 48. Rc4
{[%clk 0:00:17.8]} 48... b3 {[%clk 0:00:17]} 49. Rxe4 {[%clk 0:00:18]} 49... Rd8
{[%clk 0:00:12.7]} 50. Rc4 {[%clk 0:00:17.1]} 50... b2 {[%clk 0:00:11.6]} 51.
Be4+ {[%clk 0:00:17]} 51... Rd3 {[%clk 0:00:12.2]} 52. Kg2 {[%clk 0:00:14.6]}
52... b1=Q {[%clk 0:00:12.3]} 53. Rc8 {[%clk 0:00:13.4]} 53... Kd2 {[%clk
0:00:12.3]} 54. Rd8 {[%clk 0:00:13.1]} 54... Rxd8 {[%clk 0:00:09.2]} 55. Bxb1
{[%clk 0:00:14]} 55... Rf8 {[%clk 0:00:08.7]} 56. g4 {[%clk 0:00:13.9]} 56...
Ke2 {[%clk 0:00:09.1]} 57. Bf5 {[%clk 0:00:14]} 57... Be1 {[%clk 0:00:08.2]} 58.
e4 {[%clk 0:00:10.7]} 58... Bxf2 {[%clk 0:00:08.3]} 59. e5 {[%clk 0:00:09.8]}
59... Bc5 {[%clk 0:00:08.9]} 60. h4 {[%clk 0:00:08.7]} 60... Be7 {[%clk
0:00:08.9]} 61. h5 {[%clk 0:00:09.1]} 61... Bg5 {[%clk 0:00:09.4]} 62. e6 {[%clk
0:00:09.5]} 62... Ke3 {[%clk 0:00:09.6]} 63. Kg3 {[%clk 0:00:08.6]} 63... Kd4
{[%clk 0:00:09.6]} 64. Kf3 {[%clk 0:00:08.3]} 64... Ke5 {[%clk 0:00:09.9]} 65.
Ke2 {[%clk 0:00:07.7]} 65... Kf6 {[%clk 0:00:10.4]} 66. Kd3 {[%clk 0:00:08.3]}
66... Rd8+ {[%clk 0:00:10.7]} 67. Kc4 {[%clk 0:00:08.6]} 67... Ke5 {[%clk
0:00:11.1]} 68. Kc5 {[%clk 0:00:07.8]} 68... Rc8+ {[%clk 0:00:11.3]} 69. Kb5
{[%clk 0:00:08.1]} 69... Kd5 {[%clk 0:00:10.9]} 70. h6 {[%clk 0:00:07]} 70...
Bxh6 {[%clk 0:00:09.4]} 71. e7 {[%clk 0:00:06.2]} 71... Re8 {[%clk 0:00:09.3]}
0-1